bitfinex/quotes_SOLUSD_20260109
["timestamp","ask_amount","ask_price","bid_price","bid_amount"]
[1767986615613,8.05591374,135.71,135.67,5.24675938]
[1767986615812,0.68718236,135.73,135.7,4.56510173]
[1767986616907,8.05500569,135.73,135.7,4.56510173]
[1767986617213,0.68718236,135.72,135.69,0.68165765]
[1767986617418,0.68718236,135.72,135.7,4.56510173]
[1767986617918,0.68718236,135.72,135.69,5.24675938]
[1767986618216,21.51440154,135.74,135.71,4.56510173]
[1767986618413,18.41696722,135.75,135.71,0.68165765]
[1767986618414,8.05375285,135.75,135.71,0.68165765]
[1767986618613,0.68718236,135.74,135.71,4.56510173]
[1767986618918,7.36657049,135.75,135.72,0.68165765]
[1767986619113,7.36657049,135.75,135.72,0.56165765]
[1767986620018,0.68718236,135.72,135.65,6.6801107]
[1767986620317,0.68718236,135.7,135.66,4.56510173]
[1767986620517,0.68718236,135.69,135.65,4.56510173]
[1767986621695,0.68718236,135.69,135.64,8.05389792]
[1767986621696,0.68718236,135.68,135.64,0.68165765]
[1767986621891,0.68718236,135.67,135.62,0.68165765]
[1767986622123,25.79418094,135.69,135.63,4.56510173]
[1767986622296,4.56510173,135.68,135.63,4.56510173]
[1767986622802,4.56510173,135.68,135.62,0.68165765]
[1767986623001,7.37082626,135.67,135.63,4.56510173]
[1767986623423,7.37082626,135.67,135.63,5.24675938]
[1767986624417,7.37051606,135.68,135.64,0.68165765]
[1767986624622,7.37051606,135.68,135.65,0.68165765]
[1767986625523,7.36999922,135.69,135.66,0.68165765]
[1767986626625,8.05504284,135.69,135.66,4.56510173]
[1767986627010,8.05504284,135.69,135.65,5.24675938]
[1767986627419,8.05504284,135.69,135.66,4.56510173]
[1767986628721,7.36999922,135.69,135.66,4.56510173]
[1767986629515,13.46,135.7,135.67,4.56510173]
[1767986631529,13.46,135.7,135.67,4.50510173]
[1767986632129,14.11188182,135.7,135.67,4.50510173]
[1767986632332,21.4811267,135.7,135.65,5.23523153]
[1767986632526,21.4811267,135.7,135.66,0.6701298]
[1767986632727,20.82924488,135.7,135.66,0.6701298]
[1767986635032,25.39434661,135.7,135.66,0.6701298]
[1767986635234,13.46,135.7,135.67,0.6701298]
[1767986635725,0.65334724,135.74,135.69,5.23523153]
[1767986636037,26.04547416,135.74,135.7,0.6701298]
[1767986636928,21.48037243,135.74,135.7,0.6701298]
[1767986637229,26.04547416,135.74,135.7,0.6701298]
[1767986638626,21.48037243,135.74,135.7,0.6701298]
[1767986638828,26.04547416,135.74,135.7,0.6701298]
[1767986639812,20.82702519,135.74,135.71,0.6701298]
[1767986640013,13.46,135.74,135.71,0.6701298]
[1767986640233,13.46,135.74,135.71,5.23523153]
[1767986640409,0.50680553,135.78,135.73,0.6701298]
[1767986640615,0.56620547,135.76,135.72,4.56510173]
[1767986641531,0.56620547,135.76,135.73,4.56510173]
[1767986641906,14.02620547,135.77,135.74,4.56510173]
[1767986642108,0.56620547,135.77,135.74,4.56510173]
[1767986642535,0.56620547,135.77,135.73,0.6701298]
[1767986642738,0.56620547,135.77,135.74,4.56510173]
[1767986643107,21.54768274,135.79,135.75,4.56510173]
[1767986643324,8.08768274,135.79,135.75,4.56510173]
[1767986643533,0.72311691,135.79,135.75,4.56510173]
[1767986643729,0.72311691,135.79,135.75,0.65878432]
[1767986643932,0.72311691,135.79,135.76,4.56510173]
[1767986644116,0.72311691,135.79,135.76,4.42549843]
[1767986644533,13.66,135.8,135.76,0.65878432]
[1767986644719,0.2,135.8,135.77,0.65878432]
[1767986644919,0.2,135.8,135.76,4.56510173]
[1767986645239,0.2,135.8,135.77,4.56510173]
[1767986645438,18.94821864,135.84,135.79,4.56510173]
[1767986645610,14.38311691,135.84,135.79,4.56510173]
[1767986645814,0.92311691,135.84,135.81,4.56510173]
[1767986646016,0.2,135.84,135.81,4.56510173]
[1767986646752,0.2,135.85,135.82,4.56510173]
[1767986647644,0.2,135.85,135.83,5.22388605]
[1767986647840,0.2,135.87,135.84,0.65878432]
[1767986648149,0.2,135.87,135.83,5.22388605]
[1767986648656,0.2,135.87,135.84,0.65878432]
[1767986648815,0.2,135.87,135.84,5.22388605]
[1767986649322,0.2,135.87,135.84,0.65878432]
[1767986649522,4.76510173,135.87,135.84,0.65878432]
[1767986650423,4.76510173,135.87,135.84,5.22388605]
[1767986650424,0.2,135.87,135.84,5.22388605]
[1767986650743,0.2,135.87,135.82,8.02127281]
[1767986650744,4.76510173,135.87,135.82,8.02127281]
[1767986651049,0.72311691,135.85,135.79,25.34399675]
[1767986651342,0.72311691,135.85,135.77,18.41280568]
[1767986651343,4.56510173,135.81,135.76,0.65878432]
[1767986651522,4.56510173,135.8,135.76,8.02467509]
[1767986651719,5.28821864,135.81,135.76,8.02467509]
[1767986651920,5.28821864,135.82,135.77,5.22388605]
[1767986652528,0.72311691,135.82,135.77,5.22388605]
[1767986652822,5.28821864,135.82,135.77,5.22388605]
[1767986653032,5.28821864,135.82,135.77,0.65878432]
[1767986653230,5.28821864,135.82,135.77,5.22388605]
[1767986653419,5.28821864,135.82,135.77,12.588828]
[1767986653619,0.72311691,135.82,135.78,4.56510173]
[1767986654118,5.28821864,135.84,135.79,5.22388605]
[1767986654520,0.72311691,135.84,135.79,5.22388605]
[1767986655250,0.72311691,135.84,135.79,12.58775836]
[1767986655754,0.72311691,135.84,135.8,5.22388605]
[1767986656546,0.72311691,135.84,135.8,3.57572582]
[1767986656755,0.72311691,135.84,135.8,10.93949425]
[1767986658242,0.72311691,135.84,135.8,3.57572582]
[1767986658433,3.64005841,135.84,135.8,0.65878432]
[1767986659347,0.72311691,135.84,135.8,8.02236182]
[1767986660645,17.08005841,135.86,135.81,3.57572582]
[1767986660846,14.16311691,135.86,135.81,3.57572582]
[1767986661052,0.72311691,135.85,135.81,3.57572582]
[1767986661458,3.64005841,135.85,135.8,7.3635775]
[1767986661661,0.72311691,135.84,135.79,8.0229226]
[1767986661881,3.64005841,135.84,135.79,8.0229226]
[1767986662034,0.72311691,135.83,135.79,8.0229226]
[1767986662572,3.64005841,135.83,135.79,7.36413828]
[1767986662729,7.36165544,135.84,135.79,8.0229226]
[1767986662929,2.9169415,135.83,135.79,8.0229226]
[1767986663362,2.9169415,135.83,135.79,0.65878432]
[1767986664561,0.72311691,135.83,135.79,7.36423092]
[1767986664933,3.64005841,135.83,135.78,8.02339721]
[1767986665139,3.64005841,135.83,135.78,10.94033871]
[1767986665751,3.64005841,135.82,135.77,10.2821003]
[1767986666350,3.64005841,135.82,135.77,10.94088462]
[1767986666769,3.64005841,135.82,135.77,8.02394312]
[1767986666948,3.64005841,135.82,135.77,10.94088462]
[1767986667467,0.72311691,135.82,135.77,10.94088462]
[1767986668277,0.72311691,135.82,135.78,0.65878432]
[1767986669980,0.72311691,135.81,135.76,13.44]
[1767986670154,0.72311691,135.81,135.75,0.14216157]
[1767986670155,0.72311691,135.77,135.73,10.28434577]
[1767986670355,2.9169415,135.77,135.73,0.65878432]
[1767986670570,2.9169415,135.79,135.73,10.28450653]
[1767986670775,2.9169415,135.79,135.73,10.94329085]
[1767986670962,2.9169415,135.79,135.74,2.9169415]
[1767986671160,2.9169415,135.79,135.73,10.94329085]
[1767986671867,2.9169415,135.78,135.72,7.3678066]
[1767986672166,2.9169415,135.78,135.73,7.3675167]
[1767986672373,0.72311691,135.77,135.73,7.3675167]
[1767986674680,10.95454863,135.78,135.74,0.72330641]
[1767986675778,2.9169415,135.76,135.72,0.72330641]
[1767986676070,2.9169415,135.75,135.72,0.72330641]
[1767986676275,2.88694151,135.75,135.72,0.72330641]
[1767986676574,3.55964525,135.75,135.7,21.53246029]
[1767986676784,3.55964525,135.75,135.71,0.72330641]
[1767986676969,0.67270374,135.74,135.71,0.72330641]
[1767986677280,10.25353214,135.75,135.71,0.72330641]
[1767986677477,0.67270374,135.74,135.7,7.36915388]
[1767986677681,0.67270374,135.74,135.7,8.09246029]
[1767986677885,0.67270374,135.74,135.7,11.00940179]
[1767986679077,0.67270374,135.76,135.72,3.64024791]
[1767986680081,0.67270374,135.76,135.73,0.72330641]
[1767986680564,3.58964524,135.76,135.72,0.72330641]
[1767986681164,3.58964524,135.76,135.72,8.09140651]
[1767986681886,0.67270374,135.76,135.72,8.09140651]
[1767986682890,3.58964524,135.76,135.72,8.09140651]
[1767986683390,2.9169415,135.77,135.73,0.72330641]
[1767986683769,24.3947513,135.78,135.73,0.72330641]
[1767986684086,21.4778098,135.78,135.73,0.72330641]
[1767986684284,24.3947513,135.78,135.73,0.72330641]
[1767986684491,24.3947513,135.78,135.73,3.64024791]
[1767986684870,24.3947513,135.78,135.74,0.72330641]
[1767986684871,10.28204756,135.78,135.74,0.72330641]
[1767986685889,32.52435082,135.79,135.75,0.72330641]
[1767986685890,24.39420342,135.79,135.75,0.72330641]
[1767986686388,21.47726192,135.79,135.75,0.72330641]
[1767986686592,24.39420342,135.79,135.75,0.72330641]
[1767986686893,0.67270374,135.78,135.74,10.28390302]
[1767986687097,8.03759303,135.78,135.74,11.00720943]
[1767986687274,0.67270374,135.77,135.74,2.9169415]
[1767986688196,16.3569415,135.79,135.75,2.9169415]
[1767986688197,0.67270374,135.79,135.75,2.9169415]
[1767986688379,0.67270374,135.79,135.76,2.9169415]
[1767986688773,0.67270374,135.79,135.75,3.64024791]
[1767986688996,3.58964524,135.79,135.75,0.72330641]
[1767986689379,2.9169415,135.79,135.76,0.6623575]
[1767986693498,0.68475734,135.78,135.74,0.6623575]
[1767986693693,2.9169415,135.75,135.72,0.6623575]
[1767986694008,0.68475734,135.74,135.71,7.36838216]
[1767986694208,0.65475735,135.74,135.71,7.36838216]
[1767986694503,2.9169415,135.76,135.71,8.03073966]
[1767986694681,2.9169415,135.76,135.71,10.94768116]
[1767986695082,16.3569415,135.77,135.72,3.579299]
[1767986695303,13.44,135.77,135.73,0.6623575]
[1767986696303,14.12475734,135.77,135.73,8.02962742]
[1767986696606,0.68475734,135.76,135.73,7.36726992]
[1767986699611,2.9169415,135.76,135.73,8.02962742]
[1767986700195,2.9169415,135.75,135.72,8.03020569]
[1767986700397,2.9169415,135.75,135.72,0.6623575]
[1767986701113,2.9169415,135.75,135.71,7.36858826]
[1767986701114,3.60169884,135.75,135.71,0.6623575]
[1767986701291,2.9169415,135.73,135.7,0.6623575]
[1767986701611,3.60169884,135.74,135.7,8.03150313]
[1767986703911,3.60169884,135.74,135.71,0.69677568]
[1767986704115,0.68475734,135.74,135.71,0.69677568]
[1767986704816,3.60169884,135.74,135.71,0.69677568]
[1767986705818,0.68475734,135.74,135.71,0.69677568]
[1767986706407,10.96886671,135.74,135.71,0.69677568]
[1767986706715,0.72087486,135.71,135.67,8.06745382]
[1767986707014,3.60781637,135.71,135.67,8.06745382]
[1767986707199,0.69087487,135.71,135.68,7.37021491]
[1767986707519,0.69087487,135.71,135.67,8.06733354]
[1767986709987,0.69087487,135.71,135.67,10.98427504]
[1767986710615,0.69087487,135.71,135.68,0.69677568]
[1767986711229,24.46565357,135.73,135.68,0.69677568]
[1767986711524,3.63781636,135.72,135.68,0.69677568]
[1767986711910,8.08922215,135.72,135.68,8.06693303]
[1767986712111,11.00616365,135.72,135.68,8.06693303]
[1767986712497,0.72087486,135.72,135.68,10.98387453]
[1767986712700,0.72087486,135.72,135.68,7.37015735]
[1767986713035,0.72087486,135.72,135.68,10.98387453]
[1767986713324,0.72087486,135.72,135.68,8.06693303]
[1767986713818,11.00596849,135.72,135.68,8.06693303]
[1767986714603,0.72087486,135.72,135.68,8.06693303]
[1767986714919,11.00488571,135.74,135.7,0.69677568]
[1767986715122,0.72087486,135.72,135.68,10.98387453]
[1767986715426,0.72087486,135.72,135.69,0.69677568]
[1767986715803,0.72087486,135.73,135.69,0.69677568]
[1767986716004,3.63781636,135.73,135.69,8.06619167]
[1767986716205,11.00548176,135.73,135.69,0.69677568]
[1767986716505,12.6547525,135.73,135.69,0.69677568]
[1767986716715,0.72087486,135.72,135.69,0.69677568]
[1767986717629,12.6547525,135.73,135.69,8.06649748]
[1767986717828,0.72087486,135.72,135.69,8.06649748]
[1767986718025,0.72087486,135.72,135.69,0.69677568]
[1767986719327,0.72087486,135.72,135.69,8.06639112]
[1767986719721,0.72087486,135.72,135.69,0.69677568]
[1767986720230,0.72087486,135.71,135.67,0.69677568]
[1767986720405,0.72087486,135.7,135.67,0.69677568]
[1767986720916,0.72087486,135.67,135.65,0.1]
[1767986721713,5.2870871,135.69,135.65,0.1]
[1767986722025,0.72087486,135.68,135.65,0.1]
[1767986723434,8.09170112,135.67,135.65,0.1]
[1767986724005,12.65791336,135.67,135.65,0.1]
[1767986724211,8.09170112,135.67,135.65,0.1]
[1767986728132,12.65791336,135.67,135.65,0.1]
[1767986728832,0.72087486,135.66,135.62,0.69677568]
[1767986729129,0.72087486,135.65,135.62,0.69677568]
[1767986729331,18.7470871,135.67,135.62,5.26298792]
[1767986729533,0.72087486,135.66,135.62,5.26298792]
[1767986730931,0.72087486,135.68,135.65,0.69677568]
[1767986731115,14.18087486,135.68,135.64,0.69677568]
[1767986731830,18.7470871,135.68,135.64,0.69677568]
[1767986732130,26.11784395,135.68,135.64,0.69677568]
[1767986732332,0.72087486,135.67,135.64,0.69677568]
[1767986736335,12.65830733,135.67,135.63,0.70907445]
[1767986737921,0.69261628,135.65,135.61,8.0830864]
[1767986738121,0.69261628,135.65,135.62,0.70907445]
[1767986740538,12.63105755,135.65,135.62,0.70907445]
[1767986742019,12.63105755,135.65,135.61,0.70907445]
[1767986742224,4.56621224,135.64,135.61,0.70907445]
[1767986742632,12.63105755,135.65,135.61,0.70907445]
[1767986743139,0.69261628,135.65,135.62,0.70907445]
[1767986743334,5.25882852,135.65,135.61,0.70907445]
[1767986743533,5.25882852,135.64,135.61,0.70907445]
[1767986743951,0.69261628,135.64,135.61,0.70907445]
[1767986744154,5.25882852,135.64,135.61,0.70907445]
[1767986744645,12.63149756,135.64,135.61,0.70907445]
[1767986745223,5.25882852,135.64,135.61,0.70907445]
[1767986745432,12.6313965,135.64,135.61,0.70907445]
[1767986747550,5.25882852,135.64,135.61,0.70907445]
[1767986748663,12.63132135,135.64,135.61,0.70907445]
[1767986748957,8.06510911,135.64,135.61,0.70907445]
[1767986751764,25.39840232,135.65,135.62,0.71182293]
[1767986752652,20.83219008,135.65,135.62,0.71182293]
[1767986752977,13.46,135.65,135.62,0.71182293]
[1767986753956,13.46,135.65,135.62,8.0852482]
[1767986754166,0.70554951,135.66,135.63,0.71182293]
[1767986754357,0.70554951,135.69,135.64,0.71182293]
[1767986754556,7.36835996,135.72,135.68,0.71182293]
[1767986754755,21.53320364,135.73,135.69,0.71182293]
[1767986754959,14.16554951,135.75,135.71,0.71182293]
[1767986755163,18.73176175,135.75,135.71,0.65182293]
[1767986755864,7.36736061,135.74,135.71,0.65182293]
[1767986756658,8.07291012,135.74,135.71,0.65182293]
[1767986756965,20.82669304,135.75,135.71,5.21803517]
[1767986757175,13.46,135.75,135.72,0.71182293]
[1767986757474,8.07186347,135.76,135.73,0.71182293]
[1767986757645,8.07186347,135.76,135.73,0.65182293]
[1767986757846,20.82558923,135.77,135.73,0.65182293]
[1767986758171,12.63603629,135.8,135.74,4.56621224]
[1767986758464,0.70554951,135.79,135.75,4.56621224]
[1767986758670,0.70554951,135.8,135.76,4.56621224]
[1767986759042,0.90554951,135.81,135.77,4.56621224]
[1767986759560,0.2,135.81,135.78,0.71182293]
[1767986759766,0.2,135.81,135.78,0.65182293]
[1767986760570,0.70554951,135.8,135.74,0.28432314]
[1767986760763,0.2,135.81,135.77,4.56621224]
[1767986761070,0.90554951,135.81,135.78,4.56621224]
[1767986761268,0.90554951,135.81,135.78,7.36485211]
[1767986761569,0.90554951,135.81,135.77,4.56621224]
[1767986761770,0.90554951,135.81,135.77,0.71182293]
[1767986762071,5.27176175,135.8,135.76,0.71182293]
[1767986762291,4.56621224,135.8,135.76,0.71182293]
[1767986762580,11.93031703,135.8,135.76,0.71182293]
[1767986763771,12.83511886,135.81,135.77,0.67406176]
[1767986764354,0.90554951,135.81,135.78,0.67406176]
[1767986764548,0.70220095,135.8,135.75,4.56621224]
[1767986764749,0.70220095,135.8,135.75,11.93227031]
[1767986765473,0.70220095,135.8,135.75,7.36605807]
[1767986765663,0.70220095,135.8,135.75,11.93227031]
[1767986766065,12.83194155,135.81,135.75,11.93227031]
[1767986766664,12.83194155,135.81,135.76,0.67406176]
[1767986766870,12.1297406,135.81,135.76,0.67406176]
[1767986767070,0.70220095,135.76,135.73,0.67406176]
[1767986767252,4.56621224,135.76,135.73,0.67406176]
[1767986767855,5.26841319,135.76,135.72,7.36776567]
[1767986768160,0.70220095,135.76,135.72,8.04182743]
[1767986768572,5.26841319,135.77,135.73,0.67406176]
[1767986768876,4.56621224,135.78,135.75,0.67406176]
[1767986769080,5.26841319,135.76,135.72,0.67406176]
[1767986770674,12.63451557,135.76,135.72,0.67406176]
[1767986770885,5.26841319,135.75,135.71,0.67406176]
[1767986771070,4.56621224,135.74,135.71,0.67406176]
[1767986775770,5.26841319,135.75,135.71,0.67406176]
[1767986775971,0.70220095,135.74,135.69,0.67406176]
[1767986776275,0.70220095,135.74,135.7,11.93501304]
[1767986777059,0.70220095,135.76,135.71,5.240274]
[1767986777262,0.70220095,135.76,135.72,0.67406176]
[1767986778779,0.70220095,135.76,135.72,8.04206367]
[1767986779181,0.70220095,135.75,135.72,8.04206367]
[1767986780384,13.46,135.78,135.74,3.59466267]
[1767986780385,0.70220095,135.78,135.74,3.59466267]
[1767986780884,0.70220095,135.79,135.75,0.67406176]
[1767986781264,0.70220095,135.78,135.75,0.67406176]
[1767986782689,2.92060091,135.79,135.76,0.67406176]
[1767986783290,8.06614357,135.8,135.76,0.67406176]
[1767986783474,2.92060091,135.79,135.76,0.67406176]
[1767986784070,8.06614357,135.8,135.76,0.67406176]
[1767986784269,2.92060091,135.79,135.76,0.67406176]
[1767986785193,0.2,135.81,135.79,0.67406176]
[1767986785488,0.2,135.81,135.79,2.92060091]
[1767986786082,0.2,135.81,135.78,3.59466267]
[1767986786397,0.2,135.81,135.78,8.03858795]
[1767986786601,0.2,135.81,135.78,10.95918886]
[1767986786776,0.2,135.81,135.79,2.92060091]
[1767986787400,13.66,135.85,135.81,0.67406176]
[1767986787585,14.36220095,135.85,135.81,0.67406176]
[1767986788480,14.36220095,135.85,135.81,3.59466267]
[1767986788971,3.62280186,135.84,135.77,0.67406176]
[1767986789176,0.70220095,135.78,135.73,0.67406176]
[1767986789395,0.70220095,135.77,135.73,3.59466267]
[1767986789775,13.44,135.81,135.71,2.92060091]
[1767986789776,0.70220095,135.75,135.71,2.92060091]
[1767986789993,0.70220095,135.75,135.71,10.28885248]
[1767986790198,0.67220096,135.75,135.71,8.04231333]
[1767986790495,0.67220096,135.75,135.72,7.36803318]
[1767986792399,0.64220097,135.75,135.72,7.36803318]
[1767986792793,0.64220097,135.75,135.72,10.28863409]
[1767986793782,2.92060091,135.75,135.71,7.36855839]
[1767986794098,10.28690392,135.76,135.71,8.02166899]
[1767986794288,11.00748324,135.76,135.71,10.9422699]
[1767986794894,0.72057932,135.75,135.71,10.9422699]
[1767986795196,0.72057932,135.75,135.72,7.36808412]
[1767986796000,0.72057932,135.73,135.69,14.0931106]
[1767986796191,0.72057932,135.73,135.69,17.01371151]
[1767986796383,0.72057932,135.73,135.69,24.3831077]
[1767986796775,0.72057932,135.73,135.7,7.36917178]
[1767986799291,0.72057932,135.73,135.7,10.28977269]
[1767986799699,0.72057932,135.73,135.7,10.94288329]
[1767986800710,0.72057932,135.73,135.7,8.02228238]
[1767986801112,0.72057932,135.73,135.7,10.94288329]
[1767986803110,0.72057932,135.75,135.71,2.92060091]
[1767986803326,0.72057932,135.76,135.73,3.57371151]
[1767986803610,0.72057932,135.77,135.73,3.57371151]
[1767986804607,0.72057932,135.76,135.73,3.57371151]
[1767986806819,0.72057932,135.76,135.73,0.6531106]
[1767986807017,0.72057932,135.75,135.71,7.36839012]
[1767986807199,3.64118023,135.75,135.71,7.36839012]
[1767986807395,0.72057932,135.74,135.71,7.36839012]
[1767986808419,0.72057932,135.74,135.72,7.36801351]
[1767986808719,0.72057932,135.74,135.71,10.99084457]
[1767986811930,10.94823197,135.76,135.71,10.99084457]
[1767986812130,0.66161901,135.75,135.72,2.92060091]
[1767986813612,8.02763106,135.76,135.72,3.62245979]
[1767986814026,0.66161901,135.76,135.73,3.62245979]
[1767986814331,8.02652379,135.78,135.75,0.70185888]
[1767986815027,0.66161901,135.78,135.75,3.62245979]
[1767986815224,7.36454387,135.79,135.75,3.62245979]
[1767986815225,8.02616288,135.79,135.75,3.62245979]
[1767986815630,0.66161901,135.78,135.75,3.62245979]
[1767986816132,7.36454387,135.79,135.77,2.92060091]
[1767986816933,7.36454387,135.79,135.73,8.06936684]
[1767986817244,28.69592613,135.79,135.75,2.92060091]
[1767986817611,25.77532522,135.79,135.75,2.92060091]
[1767986818527,25.77532522,135.79,135.76,2.92060091]
[1767986819125,25.77532522,135.79,135.75,3.62245979]
[1767986819633,7.36454387,135.79,135.76,2.92060091]
[1767986820326,103.775,135.82,135.78,2.92060091]
[1767986820538,7.36345256,135.81,135.77,3.62245979]
[1767986820918,7.36345256,135.81,135.78,2.92060091]
[1767986822122,7.36345256,135.81,135.77,3.62245979]
[1767986825050,7.36345256,135.81,135.77,0.70185888]
[1767986825254,7.36345256,135.81,135.77,3.62245979]
[1767986827344,7.36345256,135.81,135.77,2.92060091]
[1767986829147,7.36345256,135.81,135.77,0.67033566]
[1767986829346,7.36345256,135.81,135.77,3.59093657]
[1767986829644,7.36345256,135.81,135.78,2.92060091]
[1767986829848,7.36345256,135.81,135.78,3.59093657]
[1767986831041,7.36345256,135.81,135.78,0.67033566]
[1767986831245,7.36345256,135.81,135.78,3.59093657]
[1767986833157,2.92060091,135.8,135.75,2.92060091]
[1767986833367,7.36485491,135.78,135.74,3.59093657]
[1767986833531,7.36485491,135.78,135.74,2.92060091]
[1767986833850,7.36485491,135.78,135.74,3.59093657]
[1767986834041,2.92060091,135.75,135.7,3.59093657]
[1767986834235,2.92060091,135.73,135.69,0.67033566]
[1767986834455,2.92060091,135.72,135.68,8.04060422]
[1767986834629,2.92060091,135.73,135.68,10.96120513]
[1767986835335,7.36756796,135.73,135.69,2.92060091]
[1767986835536,7.36756796,135.73,135.69,3.59093657]
[1767986836332,7.36756796,135.73,135.7,0.67033566]
[1767986836745,7.36756796,135.73,135.7,3.59093657]
[1767986837435,7.36756796,135.73,135.7,0.67033566]
[1767986839149,7.36756796,135.73,135.7,5.23604231]
[1767986839351,13.44,135.74,135.7,5.23604231]
[1767986839944,13.44,135.74,135.7,12.60512965]
[1767986840751,20.80707385,135.74,135.7,5.23604231]
[1767986842075,7.36539736,135.77,135.73,5.23604231]
[1767986842255,7.36539736,135.77,135.74,4.56570665]
[1767986843277,7.36539736,135.77,135.73,4.56570665]
[1767986844463,7.36539736,135.77,135.74,0.61033566]
[1767986844647,7.36539736,135.77,135.74,0.58298507]
[1767986844846,111.14005286,135.78,135.74,5.14869172]
[1767986845067,7.36505286,135.78,135.74,4.56570665]
[1767986846666,7.36505286,135.78,135.74,5.23604231]
[1767986847068,7.36505286,135.78,135.75,0.67033566]
[1767986847252,7.36505286,135.78,135.75,0.63768625]
[1767986847965,25.86244448,135.79,135.75,0.63768625]
[1767986848146,30.42815113,135.79,135.75,0.63768625]
[1767986850051,25.87409389,135.79,135.75,0.63768625]
[1767986850253,30.43980054,135.79,135.75,0.63768625]
[1767986854490,20.82398459,135.8,135.77,0.72054835]
[1767986854671,25.38969124,135.8,135.77,0.66054835]
[1767986854984,0.65020539,135.78,135.73,7.36729469]
[1767986855382,5.21228438,135.76,135.71,7.36846787]
[1767986855586,5.21228438,135.76,135.71,11.93417452]
[1767986856097,4.56570665,135.76,135.72,4.56570665]
[1767986856280,4.84948187,135.76,135.72,4.56570665]
[1767986856893,12.21557455,135.76,135.73,0.72054835]
[1767986857587,7.6498679,135.76,135.73,0.72054835]
[1767986862698,0.28743953,135.74,135.71,0.72054835]
[1767986862906,4.56570665,135.74,135.71,0.72054835]
[1767986863082,0.65020539,135.73,135.7,4.56570665]
[1767986863288,0.65020539,135.73,135.7,0.72054835]
[1767986863492,0.65020539,135.75,135.72,4.56570665]
[1767986863679,0.65020539,135.75,135.72,0.72054835]
[1767986863886,5.21591204,135.75,135.72,0.72054835]
[1767986864784,7.36702519,135.74,135.72,0.72054835]
[1767986868298,0.64657773,135.73,135.7,4.56570665]
[1767986868513,8.07394268,135.74,135.7,5.286255]
[1767986868800,8.07394268,135.74,135.71,4.56570665]
[1767986868988,8.07394268,135.74,135.71,0.71408371]
[1767986869193,7.36702519,135.74,135.71,0.71408371]
[1767986869808,0.23600321,135.71,135.66,0.71408371]
[1767986870107,0.23600321,135.71,135.67,0.71408371]
[1767986870108,4.80170986,135.71,135.67,0.71408371]
[1767986871477,0.23600321,135.71,135.67,0.71408371]
[1767986871682,4.56570665,135.71,135.67,0.71408371]
[1767986872787,12.16593885,135.71,135.67,0.71408371]
[1767986873202,7.6002322,135.71,135.67,0.71408371]
[1767986873389,7.36893765,135.71,135.68,0.71408371]
[1767986874200,13.46,135.73,135.71,0.71408371]
[1767986874407,20.82757027,135.73,135.69,4.56570665]
[1767986875884,20.82757027,135.73,135.67,7.37058459]
[1767986876085,26.10019441,135.73,135.68,4.56570665]
[1767986876286,4.8564012,135.72,135.68,0.71408371]
[1767986876502,5.26846191,135.71,135.67,0.71408371]
[1767986877000,12.63751669,135.71,135.67,0.71408371]
[1767986878482,4.8808763,135.7,135.66,0.71408371]
[1767986878690,4.56570665,135.69,135.66,0.71408371]
[1767986879206,18.73262414,135.7,135.66,0.71408371]
[1767986879505,18.3164012,135.7,135.66,0.71408371]
[1767986880607,7.36973984,135.69,135.66,0.71408371]
[1767986880815,12.63820175,135.69,135.65,0.71408371]
[1767986880997,4.56570665,135.68,135.65,0.71408371]
[1767986881310,4.8605218,135.68,135.65,0.71408371]
[1767986881499,4.8605218,135.68,135.63,4.56570665]
[1767986881807,0.69867586,135.67,135.63,12.65272743]
[1767986882993,0.69867586,135.67,135.63,8.08702078]
[1767986883200,0.69867586,135.67,135.63,12.65272743]
[1767986883683,0.69867586,135.67,135.63,8.08702078]
[1767986883882,0.69867586,135.67,135.63,12.65272743]
[1767986884193,0.69867586,135.67,135.64,4.56570665]
[1767986884895,0.69867586,135.67,135.63,8.08702078]
[1767986885096,0.69867586,135.67,135.64,4.56570665]
[1767986885506,13.46,135.7,135.66,5.25094196]
[1767986885698,0.67861574,135.69,135.67,4.56570665]
[1767986885882,14.14228784,135.7,135.67,4.56570665]
[1767986886090,14.14228784,135.7,135.67,5.25094196]
[1767986886317,13.46,135.7,135.67,5.25094196]
[1767986886523,7.36781712,135.73,135.7,0.68523531]
[1767986886815,7.68289502,135.73,135.69,5.25094196]
[1767986886993,12.24860167,135.73,135.69,0.68523531]
[1767986887194,7.68289502,135.73,135.69,0.68523531]
[1767986887390,13.46,135.74,135.72,0.68523531]
[1767986887596,13.46,135.74,135.71,4.56570665]
[1767986887807,13.46,135.74,135.71,5.25094196]
[1767986888015,0.67861574,135.75,135.72,4.56570665]
[1767986888609,8.04516334,135.75,135.72,4.56570665]
[1767986889191,0.31871328,135.76,135.72,5.25094196]
[1767986889392,7.68465618,135.76,135.73,4.56570665]
[1767986889602,7.68465618,135.76,135.72,5.25094196]
[1767986890719,13.46,135.77,135.74,5.25094196]
[1767986890899,0.68228784,135.79,135.75,4.56570665]
[1767986891219,0.68228784,135.79,135.76,4.56570665]
[1767986891531,13.46,135.8,135.76,5.25094196]